[Event "26th Zadar Open 2019"]
[Site "Zadar"]
[Date "2019.12.17"]
[Round "4.12"]
[White "Doric, Darko"]
[Black "Chan, Kim Yew"]
[Result "1/2-1/2"]
[ECO "A45"]
[WhiteElo "2492"]
[BlackElo "2245"]
[Annotator "ChessBase"]
[PlyCount "91"]
[EventDate "2019.12.15"]
[EventType "swiss"]
[EventCountry "CRO"]
[SourceTitle "playchess.com"]
[Source "ChessBase"]
[SourceQuality "1"]
[TimeControl "40/5400+30:1800+30"]

1. d4 {[%emt 0:00:30]} Nf6 {[%emt 0:00:30]} 2. Bg5 {[%emt 0:00:00]} Ne4 {[%emt 0:00:00]} 3. Bf4 {[%emt 0:00:00]} d5 {[%emt 0:00:00]} 4. e3 {[%emt 0:00:30]} c5 {[%emt 0:00:30]} 5. Bd3 {[%emt 0:00:00]} Nf6 {[%emt 0:00:00]} 6. Nc3 {[%emt 0:00:00]} Bg4 {[%emt 0:01:00]} 7. Qd2 {[%emt 0:02:30]} Nc6 {[%emt 0:02:30]} 8. h3 {[%emt 0:09:30]} Bh5 {[%emt 0:09:30]} 9. Be2 {[%emt 0:00:30]} cxd4 {[%emt 0:00:30]} 10. exd4 {[%emt 0:00:30]} Bxe2 {[%emt 0:00:30]} 11. Ngxe2 {[%emt 0:00:30]} e6 {[%emt 0:00:30]} 12. O-O {[%emt 0:00:30]} Be7 {[%emt 0:00:30]} 13. Nd1 {[%emt 0:10:30]} O-O {[%emt 0:02:30]} 14. c3 {[%emt 0:06:30]} b5 {[%emt 0:09:30]} 15. Ne3 {[%emt 0:00:30]} b4 {[%emt 0:09:30]} 16. c4 {[%emt 0:00:30]} dxc4 {[%emt 0:01:30]} 17. Nxc4 {[%emt 0:00:30]} Qd7 {[%emt 0:03:30]} 18. Rac1 {[%emt 0:04:30]} Rfd8 {[%emt 0:01:30]} 19. Rfd1 {[%emt 0:00:30]} Rac8 {[%emt 0:04:30]} 20. Kf1 {[%emt 0:13:30]} Qd5 {[%emt 0:09:30]} 21. b3 {[%emt 0:03:30]} Qb5 {[%emt 0:03:30]} 22. Qd3 {[%emt 0:14:30]} Bc5 {[%emt 0:15:30]} 23. Ne5 {[%emt 0:12:05]} Qxd3 {[%emt 0:00:30]} 24. Nxd3 {[%emt 0:02:08]} Bb6 {[%emt 0:08:37]} 25. Be3 {[%emt 0:00:41]} Nd5 {[%emt 0:02:06]} 26. Rc4 {[%emt 0:02:28]} Na5 {[%emt 0:06:16]} 27. Rxc8 {[%emt 0:00:39]} Rxc8 {[%emt 0:00:30]} 28. Ke1 {[%emt 0:00:39]} Kf8 {[%emt 0:00:30]} 29. Kd2 {[%emt 0:00:12]} Ke7 {[%emt 0:00:29]} 30. g4 {[%emt 0:02:55]} Nb7 {[%emt 0:01:42]} 31. Ndf4 {[%emt 0:05:30]} Nxf4 {[%emt 0:02:20]} 32. Bxf4 {[%emt 0:04:18]} Bc7 {[%emt 0:02:45]} 33. Bg5+ {[%emt 0:01:11]} Kd7 {[%emt 0:00:38]} 34. Rc1 {[%emt 0:00:44]} Nd6 {[%emt 0:00:50]} 35. Kd3 {[%emt 0:00:33]} Rb8 {[%emt 0:01:52]} 36. Bf4 {[%emt 0:02:51]} Nb5 {[%emt 0:00:54]} 37. Bd2 {[%emt 0:01:01]} Bd6 {[%emt 0:00:25]} 38. Rc4 {[%emt 0:00:33]} Nc7 {[%emt 0:00:00]} 39. Nf4 {[%emt 0:00:01]} Nd5 {[%emt 0:01:37]} 40. Nxd5 {[%emt 0:00:30]} exd5 {[%emt 0:00:32]} 41. Rc1 {[%emt 0:00:31]} g6 {[%emt 0:04:57]} 42. f3 {[%emt 0:06:30]} Rc8 {[%emt 0:00:30]} 43. Re1 {[%emt 0:00:00]} Re8 {[%emt 0:00:30]} 44. Rc1 {[%emt 0:00:00]} Rc8 {[%emt 0:00:30]} 45. Re1 {[%emt 0:00:00]} Re8 {[%emt 0:00:00]} 46. Rc1 {[%emt 0:00:00]} 1/2-1/2

[Event "26th Zadar Open 2019"]
[Site "Zadar"]
[Date "2019.12.17"]
[Round "4.13"]
[White "Lye, Lik Zang"]
[Black "Krasteva, Beloslava"]
[Result "1-0"]
[ECO "D35"]
[WhiteElo "2379"]
[BlackElo "2264"]
[Annotator "NA"]
[PlyCount "119"]
[EventDate "2019.12.15"]
[EventType "swiss"]
[EventCountry "CRO"]
[SourceTitle "playchess.com"]
[Source "ChessBase"]
[SourceQuality "1"]
[TimeControl "40/5400+30:1800+30"]

1. d4 {[%emt 0:00:30]} d5 {[%emt 0:00:30]} 2. c4 {[%emt 0:00:00]} e6 {[%emt 0:00:30]} 3. Nc3 {[%emt 0:00:00]} Be7 {[%emt 0:00:30]} 4. cxd5 {[%emt 0:00:30]} exd5 {[%emt 0:00:00]} 5. Bf4 $11 {[%emt 0:00:00]} Nf6 {[%emt 0:01:00]} 6. e3 {[%emt 0:00:00]} O-O {[%emt 0:00:30]} 7. Bd3 {[%emt 0:00:30]} c5 {[%emt 0:00:30]} 8. Nge2 {[%emt 0:00:30]} Nc6 {[%emt 0:00:30]} 9. O-O {[%emt 0:00:00]} Be6 {[%emt 0:06:30]} 10. dxc5 {[%emt 0:02:00]} Bxc5 {[%emt 0:00:30]} 11. Rc1 {[%emt 0:00:30]} Rc8 {[%emt 0:01:30]} 12. Nb5 {[%emt 0:11:30]} Be7 {[%emt 0:05:30]} 13. Ned4 {[%emt 0:12:30]} Qd7 {[%emt 0:04:30]} 14. a3 {[%emt 0:14:30]} a6 {[%emt 0:11:30]} 15. Nxc6 {[%emt 0:03:30]} bxc6 {[%emt 0:02:30]} 16. Nd4 {[%emt 0:04:30]} c5 {[%emt 0:00:30]} 17. Bxa6 {[%emt 0:07:30]} cxd4 {[%emt 0:01:30]} 18. Bxc8 {[%emt 0:00:30]} Rxc8 {[%emt 0:00:30]} 19. Rxc8+ {[%emt 0:02:30]} Qxc8 {[%emt 0:00:30]} 20. Qxd4 {[%emt 0:00:30]} Ne4 {[%emt 0:06:30]} 21. a4 {[%emt 0:10:30]} h5 {[%emt 0:05:30]} 22. f3 {[%emt 0:03:30]} Nd6 {[%emt 0:05:30]} 23. Qa7 {[%emt 0:05:30]} Nf5 {[%emt 0:04:30]} 24. b4 {[%emt 0:13:18]} Bxb4 {[%emt 0:09:30]} 25. Rb1 {[%emt 0:00:13]} Kh7 {[%emt 0:01:30]} 26. Qc7 {[%emt 0:02:30]} Qxc7 {[%emt 0:05:30]} 27. Bxc7 {[%emt 0:00:02]} Bc5 {[%emt 0:02:30]} 28. Bb6 {[%emt 0:00:30]} Bxb6 {[%emt 0:00:30]} 29. Rxb6 {[%emt 0:00:04]} Nxe3 {[%emt 0:00:30]} 30. a5 {[%emt 0:01:36]} d4 {[%emt 0:06:54]} 31. Kf2 {[%emt 0:01:22]} Nd5 {[%emt 0:09:19]} 32. Rd6 {[%emt 0:01:08]} Kg6 {[%emt 0:06:12]} 33. a6 {[%emt 0:01:01]} Nc7 {[%emt 0:00:30]} 34. a7 {[%emt 0:00:53]} Kf6 {[%emt 0:00:39]} 35. Rxd4 {[%emt 0:02:37]} Ke7 {[%emt 0:00:18]} 36. Rd1 {[%emt 0:00:43]} Bd7 {[%emt 0:01:03]} 37. Ke3 {[%emt 0:00:13]} Bc6 {[%emt 0:00:34]} 38. Kd4 {[%emt 0:00:25]} Nb5+ {[%emt 0:00:57]} 39. Kc5 {[%emt 0:00:12]} Nxa7 {[%emt 0:00:05]} 40. Ra1 {[%emt 0:00:19]} Bd7 {[%emt 0:00:48]} 41. Rxa7 {[%emt 0:00:54]} Ke6 {[%emt 0:02:41]} 42. h4 {[%emt 0:06:30]} Be8 {[%emt 0:04:30]} 43. Kd4 {[%emt 0:01:30]} g6 {[%emt 0:04:30]} 44. Ke4 {[%emt 0:02:30]} Kf6 {[%emt 0:01:30]} 45. Ra6+ {[%emt 0:01:30]} Kg7 {[%emt 0:00:00]} 46. Ke5 {[%emt 0:00:30]} Bb5 {[%emt 0:01:00]} 47. Rb6 {[%emt 0:00:30]} Bd7 {[%emt 0:00:30]} 48. Kd6 {[%emt 0:01:30]} Be6 {[%emt 0:00:30]} 49. Ke7 {[%emt 0:00:00]} Bc4 {[%emt 0:00:00]} 50. Rf6 {[%emt 0:00:00]} Bb3 {[%emt 0:01:00]} 51. f4 {[%emt 0:00:30]} Bd5 {[%emt 0:00:30]} 52. g3 {[%emt 0:00:30]} Bc4 {[%emt 0:00:30]} 53. f5 {[%emt 0:00:30]} gxf5 {[%emt 0:06:45]} 54. Rxf5 {[%emt 0:00:00]} Kg6 {[%emt 0:00:17]} 55. Rg5+ {[%emt 0:00:00]} Kh6 {[%emt 0:00:05]} 56. Kf6 {[%emt 0:00:30]} Bb3 {[%emt 0:01:52]} 57. Rg8 {[%emt 0:00:00]} Bc2 {[%emt 0:01:19]} 58. Rh8+ {[%emt 0:00:00]} Bh7 {[%emt 0:00:07]} 59. Rxh7+ {[%emt 0:00:30]} Kxh7 {[%emt 0:00:08]} 60. Kxf7 {[%emt 0:00:00]} 1-0

[Event "26th Zadar Open 2019"]
[Site "Zadar"]
[Date "2019.12.17"]
[Round "4.14"]
[White "Dixit, Nikhil"]
[Black "Vidic, Teja"]
[Result "1/2-1/2"]
[ECO "C60"]
[WhiteElo "2318"]
[BlackElo "2221"]
[Annotator "NA"]
[PlyCount "59"]
[EventDate "2019.12.15"]
[EventType "swiss"]
[EventCountry "CRO"]
[SourceTitle "playchess.com"]
[Source "ChessBase"]
[SourceQuality "1"]
[TimeControl "40/5400+30:1800+30"]

1. e4 {[%emt 0:02:30]} e5 {[%emt 0:00:30]} 2. Nf3 {[%emt 0:00:30]} Nc6 {[%emt 0:00:00]} 3. Bb5 {[%emt 0:00:00]} a6 {[%emt 0:00:00]} 4. Ba4 {[%emt 0:00:00]} b5 {[%emt 0:00:00]} 5. Bb3 {[%emt 0:00:00]} g6 {[%emt 0:00:00]} 6. O-O {[%emt 0:03:00]} Bg7 {[%emt 0:01:30]} 7. c3 {[%emt 0:00:30]} Nge7 {[%emt 0:01:30]} 8. d4 {[%emt 0:00:30]} exd4 {[%emt 0:00:00]} 9. cxd4 {[%emt 0:01:30]} d6 {[%emt 0:01:00]} 10. h3 {[%emt 0:01:30]} Na5 {[%emt 0:02:30]} 11. Bc2 {[%emt 0:00:30]} O-O {[%emt 0:00:00]} 12. Nc3 {[%emt 0:09:30]} c5 {[%emt 0:00:00]} 13. Bf4 {[%emt 0:08:30]} cxd4 {[%emt 0:00:30]} 14. Nxd4 {[%emt 0:00:30]} Bb7 {[%emt 0:00:30]} 15. Re1 {[%emt 0:11:30]} Nc4 {[%emt 0:01:30]} 16. Rb1 {[%emt 0:01:30]} Rc8 {[%emt 0:01:30]} 17. Bb3 {[%emt 0:08:30]} Qb6 {[%emt 0:16:30]} 18. Nde2 {[%emt 0:02:30]} Rfd8 {[%emt 0:03:30]} 19. Bg5 {[%emt 0:01:30]} Rd7 {[%emt 0:04:30]} 20. Bxe7 {[%emt 0:13:30]} Rxe7 {[%emt 0:00:30]} 21. Nd5 {[%emt 0:00:30]} Bxd5 {[%emt 0:00:30]} 22. Qxd5 {[%emt 0:01:30]} Re5 {[%emt 0:13:30]} 23. Qd3 {[%emt 0:01:30]} Rec5 {[%emt 0:00:30]} 24. Nf4 {[%emt 0:05:30]} Nxb2 {[%emt 0:05:30]} 25. Qf3 {[%emt 0:02:30]} Qa7 {[%emt 0:21:30]} 26. Ne2 {[%emt 0:00:00]} Qb6 {[%emt 0:00:00]} 27. Nf4 {[%emt 0:00:00]} Qa7 {[%emt 0:00:00]} 28. Ne2 {[%emt 0:00:00]} Qb6 {[%emt 0:00:00]} 29. Nf4 {[%emt 0:00:00]} Qa7 {[%emt 0:00:00]} 30. Ne2 {[%emt 0:00:00]} 1/2-1/2

[Event "26th Zadar Open 2019"]
[Site "Zadar"]
[Date "2019.12.17"]
[Round "4.15"]
[White "Peng, Hongchi"]
[Black "Antova, Gabriela"]
[Result "1-0"]
[ECO "B81"]
[WhiteElo "2271"]
[BlackElo "2314"]
[Annotator "NA"]
[PlyCount "69"]
[EventDate "2019.12.15"]
[EventType "swiss"]
[EventCountry "CRO"]
[SourceTitle "playchess.com"]
[Source "ChessBase"]
[SourceQuality "1"]
[TimeControl "40/5400+30:1800+30"]

1. e4 {[%emt 0:00:30]} c5 {[%emt 0:00:30]} 2. Nf3 {[%emt 0:00:00]} d6 {[%emt 0:00:00]} 3. d4 {[%emt 0:00:00]} cxd4 {[%emt 0:00:00]} 4. Nxd4 {[%emt 0:00:00]} Nf6 {[%emt 0:00:00]} 5. Nc3 {[%emt 0:00:00]} a6 {[%emt 0:00:00]} 6. h3 {[%emt 0:00:30]} e6 {[%emt 0:09:30]} 7. g4 {[%emt 0:00:00]} Be7 {[%emt 0:00:30]} 8. g5 {[%emt 0:00:00]} Nfd7 {[%emt 0:00:30]} 9. Be3 {[%emt 0:00:30]} b5 {[%emt 0:04:30]} 10. a3 {[%emt 0:00:00]} Bb7 {[%emt 0:00:00]} 11. Qd2 {[%emt 0:01:00]} Nc6 {[%emt 0:01:00]} 12. O-O-O {[%emt 0:01:30]} Rc8 {[%emt 0:02:30]} 13. Kb1 {[%emt 0:06:30]} O-O {[%emt 0:07:30]} 14. h4 {[%emt 0:01:30]} Nxd4 {[%emt 0:05:30]} 15. Bxd4 {[%emt 0:03:30]} Ne5 {[%emt 0:00:00]} 16. f4 {[%emt 0:02:30]} Nf3 {[%emt 0:04:00]} 17. Qe3 {[%emt 0:00:30]} Nxd4 {[%emt 0:00:00]} 18. Qxd4 {[%emt 0:00:30]} Rc5 {[%emt 0:14:00]} 19. h5 {[%emt 0:04:30]} e5 {[%emt 0:04:30]} 20. fxe5 {[%emt 0:00:30]} dxe5 {[%emt 0:00:30]} 21. Qf2 {[%emt 0:01:30]} Qa5 {[%emt 0:07:30]} 22. Nd5 {[%emt 0:14:30]} Bxd5 {[%emt 0:00:30]} 23. exd5 {[%emt 0:00:30]} b4 {[%emt 0:00:30]} 24. axb4 {[%emt 0:10:30]} Qxb4 {[%emt 0:00:30]} 25. Rh4 {[%emt 0:07:30]} Qb6 {[%emt 0:04:30]} 26. b3 {[%emt 0:08:30]} Rb8 {[%emt 0:14:30]} 27. d6 {[%emt 0:02:30]} Rd5 {[%emt 0:02:01]} 28. Rxd5 {[%emt 0:01:30]} Qxf2 {[%emt 0:00:13]} 29. dxe7 {[%emt 0:00:00]} Qxf1+ {[%emt 0:13:01]} 30. Kb2 {[%emt 0:00:00]} Re8 {[%emt 0:01:00]} 31. Rd8 {[%emt 0:00:30]} f5 {[%emt 0:01:23]} 32. g6 {[%emt 0:00:30]} hxg6 {[%emt 0:00:32]} 33. hxg6 {[%emt 0:00:30]} Qb5 {[%emt 0:00:05]} 34. Rb4 {[%emt 0:00:30]} Qc6 {[%emt 0:00:12]} 35. Rb6 {[%emt 0:00:00]} 1-0

[Event "26th Zadar Open 2019"]
[Site "Zadar"]
[Date "2019.12.17"]
[Round "4.16"]
[White "Mitev, Valentin"]
[Black "Sai Agni Jeevitesh, J."]
[Result "1/2-1/2"]
[ECO "C41"]
[WhiteElo "2233"]
[BlackElo "2301"]
[Annotator "NA"]
[PlyCount "92"]
[EventDate "2019.12.15"]
[EventType "swiss"]
[EventCountry "CRO"]
[SourceTitle "playchess.com"]
[Source "ChessBase"]
[SourceQuality "1"]
[TimeControl "40/5400+30:1800+30"]

1. e4 {[%emt 0:00:30]} d6 {[%emt 0:05:30]} 2. d4 {[%emt 0:01:30]} Nf6 {[%emt 0:00:30]} 3. Nc3 {[%emt 0:00:00]} Nbd7 {[%emt 0:00:00]} 4. Nf3 {[%emt 0:00:00]} e5 {[%emt 0:00:00]} 5. Bc4 {[%emt 0:00:30]} Be7 {[%emt 0:00:00]} 6. a4 {[%emt 0:00:00]} O-O {[%emt 0:00:00]} 7. O-O {[%emt 0:00:00]} c6 {[%emt 0:00:30]} 8. a5 {[%emt 0:00:30]} Rb8 {[%emt 0:02:30]} 9. Qe2 {[%emt 0:00:00]} b5 {[%emt 0:07:30]} 10. axb6 {[%emt 0:00:00]} axb6 {[%emt 0:00:00]} 11. d5 {[%emt 0:00:00]} cxd5 {[%emt 0:06:00]} 12. exd5 {[%emt 0:00:00]} Bb7 {[%emt 0:02:30]} 13. Ra7 {[%emt 0:00:30]} Qc8 {[%emt 0:11:30]} 14. Bd2 {[%emt 0:00:00]} Ra8 {[%emt 0:01:30]} 15. Rfa1 {[%emt 0:00:00]} Rxa7 {[%emt 0:00:30]} 16. Rxa7 {[%emt 0:00:00]} Qb8 {[%emt 0:01:30]} 17. Ra3 {[%emt 0:00:00]} Rc8 {[%emt 0:01:30]} 18. b4 {[%emt 0:03:30]} Qc7 {[%emt 0:08:30]} 19. Bb3 {[%emt 0:00:30]} Ra8 {[%emt 0:00:30]} 20. Rxa8+ {[%emt 0:02:30]} Bxa8 {[%emt 0:00:30]} 21. Qa6 {[%emt 0:00:30]} Bb7 {[%emt 0:03:30]} 22. Qb5 {[%emt 0:02:30]} Bd8 {[%emt 0:05:30]} 23. Ng5 {[%emt 0:02:30]} Nb8 {[%emt 0:06:30]} 24. Nce4 {[%emt 0:05:30]} Kf8 {[%emt 0:11:30]} 25. Qd3 {[%emt 0:12:30]} Nxe4 {[%emt 0:07:37]} 26. Qxe4 {[%emt 0:03:30]} Bxg5 {[%emt 0:05:12]} 27. Bxg5 {[%emt 0:00:30]} f6 {[%emt 0:02:49]} 28. Bd2 {[%emt 0:12:30]} Kg8 {[%emt 0:01:37]} 29. c4 {[%emt 0:02:30]} Nd7 {[%emt 0:00:23]} 30. g4 {[%emt 0:08:30]} g6 {[%emt 0:03:48]} 31. Be3 {[%emt 0:01:30]} Bc8 {[%emt 0:01:48]} 32. Qc2 {[%emt 0:04:30]} Kg7 {[%emt 0:01:58]} 33. g5 {[%emt 0:02:30]} fxg5 {[%emt 0:01:51]} 34. Bxg5 {[%emt 0:00:30]} b5 {[%emt 0:01:05]} 35. Be3 {[%emt 0:27:06]} bxc4 {[%emt 0:00:57]} 36. Ba4 {[%emt 0:00:00]} Bb7 {[%emt 0:00:21]} 37. Bc6 {[%emt 0:00:23]} Nb6 {[%emt 0:00:29]} 38. Bxb6 {[%emt 0:01:27]} Qxb6 {[%emt 0:00:30]} 39. Qxc4 {[%emt 0:00:01]} Bc8 {[%emt 0:00:05]} 40. Qh4 {[%emt 0:06:31]} Qa7 {[%emt 0:00:00]} 41. Kg2 {[%emt 0:06:02]} Bf5 {[%emt 0:04:00]} 42. b5 {[%emt 0:06:30]} Bd3 {[%emt 0:07:30]} 43. b6 {[%emt 0:11:32]} Qa1 {[%emt 0:01:33]} 44. Qe7+ {[%emt 0:00:09]} Kg8 {[%emt 0:00:27]} 45. Qe8+ {[%emt 0:00:21]} Kg7 {[%emt 0:00:30]} 46. Qe7+ {[%emt 0:00:12]} Kg8 {[%emt 0:00:00]} 1/2-1/2

[Event "26th Zadar Open 2019"]
[Site "Zadar"]
[Date "2019.12.17"]
[Round "4.17"]
[White "Ghersinich, Enrico"]
[Black "Rogic, Davor"]
[Result "1-0"]
[ECO "D13"]
[WhiteElo "2157"]
[BlackElo "2485"]
[Annotator "ChessBase"]
[PlyCount "87"]
[EventDate "2019.12.15"]
[EventType "swiss"]
[EventCountry "CRO"]
[SourceTitle "playchess.com"]
[Source "ChessBase"]
[SourceQuality "1"]
[TimeControl "40/5400+30:1800+30"]

1. d4 {[%emt 0:00:30]} d5 {[%emt 0:00:30]} 2. c4 {[%emt 0:00:30]} c6 {[%emt 0:00:30]} 3. cxd5 {[%emt 0:00:30]} cxd5 {[%emt 0:00:30]} 4. Nf3 {[%emt 0:00:30]} Nc6 {[%emt 0:00:30]} 5. Nc3 {[%emt 0:00:30]} Nf6 {[%emt 0:00:30]} 6. Bf4 {[%emt 0:00:00]} Nh5 {[%emt 0:03:30]} 7. Bd2 {[%emt 0:00:00]} e6 {[%emt 0:01:30]} 8. e3 {[%emt 0:00:30]} Nf6 {[%emt 0:01:30]} 9. Bd3 {[%emt 0:00:30]} Bd6 {[%emt 0:00:30]} 10. O-O {[%emt 0:00:30]} O-O {[%emt 0:00:30]} 11. Rc1 {[%emt 0:02:30]} Qe7 {[%emt 0:02:30]} 12. a3 {[%emt 0:04:30]} Rd8 {[%emt 0:06:30]} 13. Ne2 {[%emt 0:05:30]} Ne4 {[%emt 0:05:30]} 14. Bc3 {[%emt 0:05:30]} Bd7 {[%emt 0:04:30]} 15. Ng3 {[%emt 0:06:30]} f5 {[%emt 0:05:30]} 16. Qb3 {[%emt 0:00:30]} Be8 {[%emt 0:06:30]} 17. Bb5 {[%emt 0:10:30]} Nxc3 {[%emt 0:09:30]} 18. Qxc3 {[%emt 0:04:30]} Rac8 {[%emt 0:01:30]} 19. Bxc6 {[%emt 0:00:30]} Rxc6 {[%emt 0:03:30]} 20. Qa5 {[%emt 0:00:30]} Rdc8 {[%emt 0:06:30]} 21. Rxc6 {[%emt 0:04:30]} Rxc6 {[%emt 0:07:30]} 22. Ne5 {[%emt 0:00:30]} Bxe5 {[%emt 0:02:30]} 23. dxe5 {[%emt 0:00:30]} b6 {[%emt 0:00:30]} 24. Qa4 {[%emt 0:05:30]} Rc4 {[%emt 0:05:30]} 25. Qb3 {[%emt 0:05:30]} Qc7 {[%emt 0:09:35]} 26. f4 {[%emt 0:00:30]} Ba4 {[%emt 0:00:38]} 27. Qd3 {[%emt 0:00:30]} Bb5 {[%emt 0:00:41]} 28. a4 {[%emt 0:13:30]} Bxa4 {[%emt 0:01:16]} 29. Ne2 {[%emt 0:05:30]} Bc2 {[%emt 0:05:14]} 30. Qd2 {[%emt 0:03:43]} Qc5 {[%emt 0:00:18]} 31. Nd4 {[%emt 0:00:31]} Kf7 {[%emt 0:01:58]} 32. b3 {[%emt 0:01:32]} Qb4 {[%emt 0:04:30]} 33. Qxb4 {[%emt 0:04:27]} Rxb4 {[%emt 0:00:04]} 34. Nxc2 {[%emt 0:00:03]} Rxb3 {[%emt 0:00:03]} 35. Kf2 {[%emt 0:00:23]} a5 {[%emt 0:00:33]} 36. Nd4 {[%emt 0:00:27]} Rb2+ {[%emt 0:00:08]} 37. Kf3 {[%emt 0:00:16]} a4 {[%emt 0:04:05]} 38. Rc1 {[%emt 0:00:24]} a3 {[%emt 0:01:07]} 39. Rc7+ {[%emt 0:00:44]} Ke8 {[%emt 0:00:48]} 40. Nxe6 {[%emt 0:00:00]} a2 {[%emt 0:00:00]} 41. Nxg7+ {[%emt 0:01:30]} Kd8 {[%emt 0:02:32]} 42. Ne6+ {[%emt 0:00:30]} Ke8 {[%emt 0:00:00]} 43. Ra7 {[%emt 0:00:00]} b5 {[%emt 0:00:00]} 44. Nc7+ {[%emt 0:01:00]} 1-0

[Event "26th Zadar Open 2019"]
[Site "Zadar"]
[Date "2019.12.17"]
[Round "4.18"]
[White "Galperin, Platon"]
[Black "Gelbenegger, Patrick"]
[Result "1/2-1/2"]
[ECO "C96"]
[WhiteElo "2462"]
[BlackElo "2267"]
[Annotator "ChessBase"]
[PlyCount "144"]
[EventDate "2019.12.15"]
[EventType "swiss"]
[EventCountry "CRO"]
[SourceTitle "playchess.com"]
[Source "ChessBase"]
[SourceQuality "1"]
[TimeControl "40/5400+30:1800+30"]

1. e4 {[%emt 0:02:30]} e5 {[%emt 0:07:30]} 2. Nf3 {[%emt 0:00:00]} Nc6 {[%emt 0:00:00]} 3. Bb5 {[%emt 0:00:00]} a6 {[%emt 0:00:00]} 4. Ba4 {[%emt 0:00:00]} Nf6 {[%emt 0:00:30]} 5. O-O {[%emt 0:00:00]} b5 {[%emt 0:02:30]} 6. Bb3 {[%emt 0:00:30]} Be7 {[%emt 0:00:30]} 7. Re1 {[%emt 0:01:30]} d6 {[%emt 0:01:30]} 8. c3 {[%emt 0:00:30]} O-O {[%emt 0:00:30]} 9. h3 {[%emt 0:00:00]} Na5 {[%emt 0:00:30]} 10. Bc2 {[%emt 0:00:00]} c5 {[%emt 0:00:30]} 11. d4 {[%emt 0:00:30]} cxd4 {[%emt 0:06:30]} 12. cxd4 {[%emt 0:00:30]} Qc7 {[%emt 0:00:30]} 13. Nc3 {[%emt 0:03:30]} Bb7 {[%emt 0:04:30]} 14. d5 {[%emt 0:00:30]} Rfc8 {[%emt 0:05:30]} 15. Bd3 {[%emt 0:01:30]} Nc4 {[%emt 0:05:30]} 16. Ne2 {[%emt 0:10:30]} Nh5 {[%emt 0:13:30]} 17. b3 {[%emt 0:03:30]} Nb6 {[%emt 0:01:30]} 18. g4 {[%emt 0:05:30]} Nf6 {[%emt 0:02:30]} 19. Ng3 {[%emt 0:00:30]} g6 {[%emt 0:07:30]} 20. Be3 {[%emt 0:25:30]} Nbd7 {[%emt 0:03:30]} 21. g5 {[%emt 0:02:30]} Ne8 {[%emt 0:02:30]} 22. h4 {[%emt 0:00:30]} Qd8 {[%emt 0:03:30]} 23. h5 {[%emt 0:00:00]} Rc3 {[%emt 0:02:30]} 24. Bf1 {[%emt 0:00:00]} Rxe3 {[%emt 0:08:30]} 25. Rxe3 {[%emt 0:00:30]} Bxg5 {[%emt 0:00:30]} 26. Nxg5 {[%emt 0:00:30]} Qxg5 {[%emt 0:00:30]} 27. Bh3 {[%emt 0:05:30]} Ndf6 {[%emt 0:01:07]} 28. hxg6 {[%emt 0:01:30]} hxg6 {[%emt 0:00:16]} 29. Rc1 {[%emt 0:00:30]} Nh5 {[%emt 0:05:43]} 30. Kf1 {[%emt 0:02:30]} Nf4 {[%emt 0:01:00]} 31. Ne2 {[%emt 0:00:30]} Nf6 {[%emt 0:05:34]} 32. Nxf4 {[%emt 0:00:30]} exf4 {[%emt 0:00:10]} 33. Re1 {[%emt 0:00:30]} a5 {[%emt 0:00:42]} 34. Qf3 {[%emt 0:03:30]} b4 {[%emt 0:02:44]} 35. Qg2 {[%emt 0:00:30]} Qh5 {[%emt 0:01:06]} 36. f3 {[%emt 0:05:30]} Kg7 {[%emt 0:00:36]} 37. Rc7 {[%emt 0:00:30]} Ba6+ {[%emt 0:00:36]} 38. Kg1 {[%emt 0:00:30]} Rh8 {[%emt 0:00:39]} 39. Be6 {[%emt 0:00:00]} Rf8 {[%emt 0:01:34]} 40. Rec1 {[%emt 0:03:00]} Nh7 {[%emt 0:02:38]} 41. Qg4 {[%emt 0:43:47]} Qe5 {[%emt 0:32:19]} 42. Bxf7 {[%emt 0:00:00]} Ng5 {[%emt 0:00:00]} 43. Be6+ {[%emt 0:00:00]} Kf6 {[%emt 0:00:00]} 44. Qg2 {[%emt 0:00:00]} Rh8 {[%emt 0:00:00]} 45. Rd1 {[%emt 0:00:00]} Bd3 {[%emt 0:00:00]} 46. Rxd3 {[%emt 0:00:00]} Qa1+ {[%emt 0:00:00]} 47. Kf2 {[%emt 0:00:00]} Rh1 {[%emt 0:00:55]} 48. e5+ {[%emt 0:00:00]} dxe5 {[%emt 0:00:38]} 49. Qxh1 {[%emt 0:00:00]} Qxh1 {[%emt 0:00:16]} 50. Rc6 {[%emt 0:00:00]} Qh2+ {[%emt 0:00:33]} 51. Ke1 {[%emt 0:00:00]} Qg1+ {[%emt 0:01:14]} 52. Kd2 {[%emt 0:00:00]} Kg7 {[%emt 0:01:20]} 53. Rc7+ {[%emt 0:00:00]} Kf6 {[%emt 0:00:20]} 54. Bg8 {[%emt 0:00:00]} Nxf3+ {[%emt 0:00:58]} 55. Rxf3 {[%emt 0:00:00]} Qg2+ {[%emt 0:00:10]} 56. Kc1 {[%emt 0:00:00]} Qxf3 {[%emt 0:00:15]} 57. d6 {[%emt 0:00:00]} Qe3+ {[%emt 0:00:22]} 58. Kc2 {[%emt 0:00:00]} Qe2+ {[%emt 0:00:38]} 59. Kc1 {[%emt 0:00:00]} Qe1+ {[%emt 0:00:51]} 60. Kc2 {[%emt 0:00:00]} Qe4+ {[%emt 0:00:11]} 61. Kc1 {[%emt 0:00:00]} f3 {[%emt 0:00:59]} 62. Bc4 {[%emt 0:00:00]} Qe3+ {[%emt 0:00:28]} 63. Kc2 {[%emt 0:00:00]} Qc3+ {[%emt 0:00:26]} 64. Kb1 {[%emt 0:00:00]} f2 {[%emt 0:00:59]} 65. Rf7+ {[%emt 0:00:00]} Kg5 {[%emt 0:00:12]} 66. d7 {[%emt 0:00:00]} Qd2 {[%emt 0:00:44]} 67. Bb5 {[%emt 0:00:00]} Qd1+ {[%emt 0:00:32]} 68. Kb2 {[%emt 0:00:00]} Qd2+ {[%emt 0:00:07]} 69. Kb1 {[%emt 0:00:00]} Qd1+ {[%emt 0:01:02]} 70. Kb2 {[%emt 0:00:00]} Qd4+ {[%emt 0:00:26]} 71. Kb1 {[%emt 0:00:00]} Qd1+ {[%emt 0:00:42]} 72. Kb2 {[%emt 0:00:00]} Qd2+ {[%emt 0:00:24]} 1/2-1/2